bitfinex-derivatives/quotes_SOLF0:USTF0_20251119
["timestamp","ask_amount","ask_price","bid_price","bid_amount"]
[1763513775583,0.04913988,141.43,141.41,6.41897258]
[1763513777683,0.04913988,141.43,141.42,1.87923455]
[1763513778079,0.04913988,141.43,141.41,6.41897258]
[1763513778286,0.04913988,141.43,141.41,0.05117258]
[1763513778482,3.27913988,141.43,141.41,0.05117258]
[1763513778687,3.27913988,141.43,141.41,37.23117258]
[1763513780694,3.27913988,141.43,141.41,0.05117258]
[1763513783289,0.04913988,141.43,141.42,6.3674]
[1763513783889,3.04,141.51,141.43,6.3669]
[1763513784086,3.04,141.49,141.43,6.3669]
[1763513784289,3.04,141.47,141.43,6.3669]
[1763513784988,3.09372629,141.46,141.44,0.04607208]
[1763513785189,3.08832035,141.46,141.44,0.04607208]
[1763513788898,3.04,141.52,141.45,2.93420557]
[1763513789900,0.04813863,141.5,141.47,0.04531785]
[1763513790197,0.04813863,141.5,141.48,37.16]
[1763513794398,0.04813863,141.5,141.48,43.5246]
[1763513795603,0.04813863,141.5,141.48,6.3646]
[1763513796205,0.04813863,141.5,141.49,37.16]
[1763513796505,0.04813863,141.5,141.48,6.3646]
[1763513796702,0.04813863,141.5,141.47,0.04531785]
[1763513796906,3.22813863,141.5,141.48,37.16]
[1763513797206,0.04813863,141.5,141.48,37.16]
[1763513797403,3.18,141.61,141.5,98.9919]
[1763513797602,3.18,141.6,141.51,2.93420557]
[1763513797807,3.18,141.6,141.52,37.16]
[1763513798500,3.18,141.6,141.55,0.05402306]
[1763513798900,3.18,141.58,141.55,0.05402306]
[1763513802996,9.5392,141.61,141.55,0.05402306]
[1763513803311,3.18,141.6,141.55,0.05402306]
[1763513803709,3.18,141.58,141.55,0.05402306]
[1763513808315,3.18,141.57,141.55,0.05402306]
[1763513808512,3.18,141.57,141.49,37.14]
[1763513809412,3.18,141.57,141.52,0.04996179]
[1763513809614,3.23212125,141.54,141.52,0.04996179]
[1763513809910,3.23193177,141.54,141.52,0.04996179]
[1763513811218,0.05193177,141.54,141.52,0.04996179]
[1763513813711,3.23193177,141.54,141.52,0.04996179]
[1763513825733,3.23193177,141.54,141.52,6.41276179]
[1763513839744,3.23193177,141.54,141.52,0.04996179]
[1763513840743,3.23193177,141.54,141.52,6.41286179]
[1763513841637,3.23193177,141.54,141.52,0.04996179]
[1763513842640,3.23193177,141.54,141.45,2.93420557]
[1763513842844,3.12,141.52,141.46,37.12]
[1763513843036,3.12,141.5,141.46,37.12]
[1763513843547,3.12,141.5,141.48,6.3646]
[1763513843840,3.17235955,141.5,141.48,6.41247151]
[1763513844542,3.17235955,141.5,141.48,0.04787151]
[1763513845043,8.53461513,141.49,141.48,0.04787151]
[1763513845241,3.12,141.49,141.48,0.04787151]
[1763513845444,3.12,141.48,141.44,45.3629725]
[1763513845842,3.12,141.48,141.44,38.9966725]
[1763513846036,3.12,141.48,141.44,1.8766725]
[1763513846240,3.12,141.48,141.38,120.2949]
[1763513846241,3.12,141.48,141.43,37.12]
[1763513846445,3.12,141.46,141.45,0.04796572]
[1763513847035,3.12,141.46,141.42,37.12]
[1763513847547,3.12,141.46,141.41,37.12]
[1763513847845,3.12,141.46,141.4,1.8766725]
[1763513848046,3.16568373,141.44,141.42,0.05235379]
[1763513850644,3.16568373,141.44,141.42,37.17235379]
[1763513850950,3.16568373,141.44,141.42,0.05235379]
[1763513851153,3.16568373,141.44,141.42,6.41965379]
[1763513851849,3.16568373,141.44,141.42,43.53965379]
[1763513852049,3.16568373,141.44,141.42,6.41965379]
[1763513852354,3.16568373,141.44,141.42,37.17235379]
[1763513854446,3.16568373,141.44,141.42,43.53965379]
[1763513855553,3.00568373,141.44,141.42,0.05235379]
[1763513855758,3.00568373,141.44,141.42,37.17235379]
[1763513856254,3.00568373,141.44,141.42,0.05235379]
[1763513856655,3.00568373,141.44,141.42,37.17235379]
[1763513857055,3.00568373,141.44,141.42,43.53965379]
[1763513859958,3.00568373,141.44,141.42,0.05235379]
[1763513863562,3.00568373,141.44,141.42,6.41965379]
[1763513867767,3.00568373,141.44,141.42,0.05235379]
[1763513868273,3.00568373,141.44,141.37,43.4892]
[1763513868576,2.96,141.4,141.36,37.12]
[1763513868865,2.96,141.4,141.35,1.8766725]
[1763513869061,0.0489307,141.39,141.36,37.17009241]
[1763513869266,3.0089307,141.39,141.36,37.17009241]
[1763513869861,0.0489307,141.39,141.38,6.3692]
[1763513872669,0.0489307,141.39,141.38,43.4892]
[1763513875072,3.0089307,141.39,141.38,6.3692]
[1763513875565,3.0089307,141.39,141.36,8.29636491]
[1763513875970,3.0089307,141.39,141.36,45.41636491]
[1763513877367,3.0089307,141.39,141.37,6.3696]
[1763513878063,0.0489307,141.39,141.37,6.3696]
[1763513878459,0.0489307,141.39,141.38,6.3692]
[1763513880972,0.0489307,141.39,141.38,8.2458725]
[1763513883885,3.0289307,141.39,141.37,6.3696]
[1763513884177,3.0289307,141.39,141.38,37.12]
[1763513884487,3.0289307,141.39,141.36,1.92676491]
[1763513884488,3.0289307,141.39,141.36,0.05009241]
[1763513884779,2.98,141.38,141.32,37.12]
[1763513885371,6.3696,141.37,141.32,43.4918]
[1763513885580,2.98,141.36,141.32,37.12]
[1763513886081,3.03435481,141.35,141.33,0.05098448]
[1763513887375,0.05435481,141.35,141.33,6.42238448]
[1763513889889,0.05435481,141.35,141.34,1.8766725]
[1763513890086,0.05435481,141.35,141.33,6.42238448]
[1763513890087,0.05435481,141.35,141.33,8.29905698]
[1763513892492,0.05435481,141.35,141.34,37.12]
[1763513892686,0.05435481,141.35,141.33,8.29905698]
[1763513892983,0.05435481,141.35,141.34,37.12]
[1763513895990,2.98,141.4,141.34,37.12]
[1763513896192,2.98,141.4,141.35,1.8766725]
[1763513896989,3.0268941,141.39,141.36,6.41848643]
[1763513898892,3.0268941,141.39,141.36,43.53848643]
[1763513904096,3.0268941,141.39,141.37,6.3696]
[1763513907097,0.0468941,141.39,141.38,6.3692]
[1763513907397,3.0,141.44,141.38,37.12]
[1763513908298,0.05298128,141.42,141.4,0.0470594]
[1763513908686,3.05298128,141.42,141.4,0.0470594]
[1763513910092,3.05298128,141.42,141.37,37.12]
[1763513910297,3.0,141.4,141.37,37.12]
[1763513910497,3.0,141.39,141.34,6.3708]
[1763513910694,3.0,141.39,141.34,43.4908]
[1763513911096,3.0,141.37,141.35,0.04682285]
[1763513911413,0.05325567,141.38,141.35,0.04682285]
[1763513913009,0.05325567,141.38,141.36,6.37]
[1763513913198,3.05325567,141.38,141.35,0.04682285]
[1763513914205,0.05325567,141.38,141.36,6.37]
[1763513918118,0.05325567,141.38,141.37,6.3696]
[1763513920015,0.05325567,141.38,141.36,6.3701]
[1763513920313,0.05325567,141.38,141.35,0.04682285]
[1763513920717,0.05325567,141.38,141.37,6.3696]
[1763513921014,0.05325567,141.38,141.35,0.04682285]
[1763513921915,0.05325567,141.38,141.36,6.3701]
[1763513922214,0.05325567,141.38,141.35,0.04682285]
[1763513922615,0.05325567,141.38,141.36,6.3701]
[1763513922816,0.05325567,141.38,141.35,0.04682285]
[1763513923313,0.05325567,141.38,141.35,37.14682285]
[1763513924913,0.05325567,141.38,141.36,6.3701]
[1763513926110,0.05325567,141.38,141.37,6.3696]
[1763513926916,0.05325567,141.38,141.36,43.4701]
[1763513927114,0.05325567,141.38,141.36,37.1]
[1763513927115,3.03325567,141.38,141.36,37.1]
[1763513927411,3.03325567,141.38,141.35,0.04682285]
[1763513927717,3.03325567,141.38,141.35,37.14682285]
[1763513928716,3.03325567,141.38,141.36,6.37]
[1763513929119,3.03325567,141.38,141.35,0.04682285]
[1763513931318,3.03325567,141.38,141.35,6.41732285]
[1763513932519,3.03325567,141.38,141.35,0.04682285]
[1763513933620,8.38577126,141.37,141.35,0.04682285]
[1763513933814,8.38621376,141.36,141.35,0.04682285]
[1763513935823,2.98,141.36,141.35,0.04682285]
[1763513937917,2.98,141.36,141.31,6.372]
[1763513938926,108.61325601,141.41,141.3,37.1]
[1763513938927,3.02558422,141.35,141.32,6.42405603]
[1763513939230,3.03398795,141.35,141.32,0.05163361]
[1763513940721,3.03398795,141.35,141.22,99.187]
[1763513940922,2.98,141.34,141.22,99.187]
[1763513941123,2.98,141.27,141.2,2.9359989]
[1763513941442,2.98,141.27,141.17,102.1566989]
[1763513941620,2.98,141.25,141.17,2.9359989]
[1763513941932,3.02624298,141.22,141.2,0.04656326]
[1763513942130,3.02796197,141.22,141.2,0.05131677]
[1763513945734,3.02796197,141.22,141.15,7.60914716]
[1763513945925,3.02796197,141.22,141.15,1.22974716]
[1763513946323,3.02796197,141.22,141.12,102.1914989]
[1763513946529,3.16611888,141.18,141.16,0.04512575]
[1763513946722,3.16911576,141.18,141.16,0.05168583]
[1763513947735,0.04911576,141.18,141.16,0.05168583]
[1763513947933,3.16911576,141.18,141.16,0.05168583]
[1763513949339,0.04911576,141.18,141.16,0.05168583]
[1763513949933,3.16911576,141.18,141.16,0.05168583]
[1763513950433,0.04911576,141.18,141.16,0.05168583]
[1763513951738,3.16911576,141.18,141.16,0.05168583]
[1763513953243,3.16911576,141.18,141.12,1.23284032]
[1763513953445,3.16911576,141.18,141.06,99.2994]
[1763513953743,3.12,141.18,141.11,6.3812]
[1763513954243,3.12,141.15,141.13,0.0496899]
[1763513955043,0.0531012,141.16,141.13,0.0496899]
[1763513955539,0.0531012,141.16,141.14,6.3798]
[1763513957436,0.0531012,141.16,141.14,43.5198]
[1763513966756,0.0531012,141.16,141.15,1.88426765]
[1763513967050,2.99,141.24,141.15,101.13006765]
[1763513967752,2.99,141.24,141.16,37.14]
[1763513968151,1.88426765,141.25,141.19,0.04583183]
[1763513968152,2.99,141.2,141.19,0.04583183]
[1763513972553,2.99,141.19,141.12,99.2558]
[1763513972857,2.99,141.19,141.13,39.02426765]
[1763513973849,3.09,141.18,141.13,45.40506765]
[1763513974150,3.09,141.16,141.14,0.0516735]
[1763513974555,3.09,141.16,141.15,6.3801]
[1763513975752,3.09,141.16,141.14,0.0516735]
[1763513976960,3.09,141.16,141.14,6.4322735]
[1763513977162,3.09,141.16,141.14,0.0516735]
[1763513977853,3.09,141.16,141.14,6.4322735]
[1763513978846,3.09,141.16,141.14,0.0516735]
[1763513979245,3.09,141.16,141.09,1.23314612]
[1763513979449,3.09,141.16,141.09,38.37314612]
[1763513979855,1.88426765,141.17,141.09,38.37314612]
[1763513979856,3.09,141.15,141.09,38.37314612]
[1763513980057,3.09,141.15,141.09,1.23314612]
[1763513980261,3.09,141.13,141.09,1.23314612]
[1763513980660,0.05388414,141.12,141.1,0.04945061]
[1763513981060,0.05388414,141.12,141.1,6.43175061]
[1763513981256,3.14388414,141.12,141.1,0.04945061]
[1763513982159,3.14388414,141.12,141.1,6.43175061]
[1763513983359,3.14388414,141.12,141.1,0.04945061]
[1763513983360,8.49021537,141.11,141.1,0.04945061]
[1763513983662,8.49021537,141.11,141.06,1.88426765]
[1763513983663,3.09,141.1,141.06,1.88426765]
[1763513983850,8.49127627,141.09,141.06,8.26806765]
[1763513984049,3.09,141.09,141.06,8.26806765]
[1763513984248,3.09,141.09,141.06,6.3838]
[1763513984666,3.14178588,141.09,141.06,6.43709477]
[1763513985367,3.14178588,141.09,141.07,6.3836]
[1763513985861,0.05178588,141.09,141.07,6.3836]
[1763513986264,0.05178588,141.09,141.07,43.5236]
[1763513987868,0.05178588,141.09,141.08,1.88426765]
[1763513988466,5.40597678,141.13,141.09,99.2885]
[1763513988666,3.09,141.15,141.1,1.88426765]
[1763513988968,6.61685711,141.17,141.12,6.3815]
[1763513988969,8.49635291,141.14,141.12,6.3815]
[1763513989268,9.70685711,141.18,141.12,37.14]
[1763513989568,3.13811922,141.16,141.14,0.0446376]
[1763513989766,5.40692239,141.15,141.14,0.0446376]
[1763513990667,8.49692239,141.15,141.14,0.0446376]
[1763513991068,3.09,141.15,141.14,0.0446376]
[1763513991368,8.49736898,141.15,141.14,0.0446376]
[1763513991664,3.13811922,141.16,141.14,6.4249376]
[1763513991871,8.49789438,141.15,141.14,0.0446376]
[1763513992261,3.09,141.15,141.14,0.0446376]
[1763513992775,0.04811922,141.16,141.14,0.0446376]
[1763513993072,3.13811922,141.16,141.14,6.4251376]
[1763513995278,3.13811922,141.16,141.14,0.0446376]
[1763514000378,3.13811922,141.16,141.14,6.4252376]
[1763514000778,0.04811922,141.16,141.14,6.4252376]
[1763514001281,0.04811922,141.16,141.14,0.0446376]
[1763514001282,3.13811922,141.16,141.14,0.0446376]
[1763514002578,3.09,141.14,141.04,101.20890781]
[1763514002783,100.71171922,141.16,141.04,138.34890781]
[1763514002784,3.09,141.12,141.04,138.34890781]
[1763514003379,3.24950025,141.09,141.07,0.05127548]
[1763514003782,0.04950025,141.09,141.07,0.05127548]
[1763514004086,0.04950025,141.09,141.07,6.43497548]
[1763514006687,3.24950025,141.09,141.07,6.43497548]
[1763514010389,3.24950025,141.09,141.07,0.05127548]
[1763514011390,3.2,141.07,140.99,37.14]
[1763514011591,3.2,141.06,140.99,37.14]
[1763514011790,3.2,141.06,141.01,99.3458]
[1763514012290,3.24845008,141.05,141.03,6.3855]
[1763514013883,3.24845008,141.05,141.02,0.0490794]
[1763514014494,3.2,141.04,141.02,0.0490794]
[1763514014901,3.2,141.04,140.98,99.3642]
[1763514015292,3.2,141.04,140.98,99.3636]
[1763514015493,3.2,141.03,140.98,99.3636]
[1763514015893,0.04695662,141.02,141.01,6.3863]
[1763514016098,3.25094198,141.03,141.0,99.40534557]
[1763514016493,43.5226,141.1,141.01,99.3394]
[1763514016704,1.88590781,141.08,141.02,99.3351]
[1763514017500,1.88590781,141.08,141.01,99.3394]
[1763514017798,1.9352582,141.06,141.04,0.04535138]
[1763514018001,1.9352582,141.06,140.98,99.3636]
[1763514018204,1.9352582,141.06,140.99,99.3581]
[1763514018701,3.2,141.05,140.99,99.3581]
[1763514018905,3.2,141.05,141.01,0.0472619]
[1763514019305,3.2,141.05,141.03,6.3855]
[1763514020207,3.24935039,141.06,141.05,6.3847]
[1763514021507,3.24935039,141.06,141.04,0.05175325]
[1763514021897,3.24935039,141.06,141.04,6.43675325]
[1763514022098,3.24935039,141.06,141.04,8.32266106]
[1763514022099,0.04935039,141.06,141.04,8.32266106]
[1763514022298,3.05,141.12,141.08,99.2963]
[1763514022503,3.05,141.15,141.03,21.25]
[1763514022704,1.88590781,141.06,140.99,1.23402067]
[1763514023006,3.05,141.06,140.99,100.59102067]
[1763514023206,0.0531893,141.04,141.01,0.05212875]
[1763514024707,0.0531893,141.04,141.02,6.3857]
[1763514025005,0.0531893,141.04,141.01,0.05212875]
[1763514025006,3.1031893,141.04,141.01,0.05212875]
[1763514026213,0.0531893,141.04,141.01,0.05212875]
[1763514027112,0.0531893,141.04,140.98,99.3635]
[1763514027113,3.05,141.02,140.92,1.88590781]
[1763514027412,3.05,140.99,140.9,8.27720781]
[1763514027611,3.05,140.99,140.9,46.81203855]
[1763514027911,4.93590781,140.98,140.9,40.42073855]
[1763514028112,3.05,141.01,140.9,38.53483074]
[1763514028413,0.04911752,140.97,140.94,0.0480755]
[1763514029113,0.04911752,140.97,140.94,6.4375755]
[1763514029320,0.04911752,140.97,140.94,0.0480755]
[1763514030513,0.04911752,140.97,140.95,6.389]
[1763514030818,3.05,141.04,140.98,99.3665]
[1763514031114,3.05,141.04,140.99,99.359]
[1763514031814,3.05,141.04,141.01,6.3863]
[1763514032010,0.04867539,141.03,141.01,6.3863]
[1763514033114,0.04867539,141.03,141.0,0.05407378]
[1763514033617,0.04867539,141.03,141.01,6.3862]
[1763514034113,3.24,141.1,141.06,6.3841]
[1763514034313,3.24,141.1,141.05,99.3166]
[1763514035013,3.24,141.1,141.02,99.3346]
[1763514035216,3.28613154,141.09,141.06,0.04643759]
[1763514036516,3.28613154,141.09,141.06,6.43043759]
[1763514036711,3.28613154,141.09,141.06,0.04643759]
[1763514036712,0.04613154,141.09,141.06,0.04643759]
[1763514037306,0.04613154,141.09,141.07,6.3835]
[1763514038816,3.28613154,141.09,141.06,0.04643759]
[1763514039213,3.24,141.08,141.0,2.95374109]
[1763514039611,3.24,141.08,141.02,6.3858]
[1763514040012,3.24,141.07,141.02,6.3858]
[1763514040208,3.24,141.05,141.03,0.04762586]
[1763514040414,3.24,141.05,141.03,6.43302586]
[1763514040918,0.05322671,141.06,141.03,6.43302586]
[1763514041120,0.05322671,141.06,141.04,6.3849]
[1763514041318,3.29322671,141.06,141.04,6.3849]
[1763514041518,0.05322671,141.06,141.04,6.3849]
[1763514042219,0.05322671,141.06,141.04,43.6649]
[1763514043413,3.24,141.12,141.08,6.3832]
[1763514043822,5.4488827,141.14,141.08,99.2966]
[1763514044017,8.6888827,141.15,141.09,6.3826]
[1763514044322,8.6888827,141.15,141.08,136.5566]
[1763514044323,3.24,141.15,141.08,136.5566]
[1763514044509,3.29073708,141.13,141.1,0.05346498]
[1763514044909,3.29073708,141.13,141.1,6.43566498]
[1763514045821,0.05073708,141.13,141.1,6.43566498]
[1763514046223,0.05073708,141.13,141.1,0.05346498]
[1763514046414,3.29073708,141.13,141.1,0.05346498]
[1763514046919,0.05073708,141.13,141.11,6.3818]
[1763514047719,3.29073708,141.13,141.1,0.05346498]
[1763514048327,0.05073708,141.13,141.1,6.43576498]
[1763514048817,0.05073708,141.13,141.1,0.05346498]
[1763514049814,0.05073708,141.13,141.11,6.3818]
[1763514052126,0.05073708,141.13,141.1,37.29346498]
[1763514052721,0.05073708,141.13,141.11,6.3818]
[1763514053725,3.24,141.17,141.11,99.2688]
[1763514054623,0.04545011,141.15,141.11,99.2688]
[1763514055028,0.04545011,141.15,141.13,6.3809]
[1763514057225,0.04545011,141.15,141.12,37.22]
[1763514058130,0.04545011,141.15,141.13,6.381]
[1763514061136,0.04545011,141.15,141.13,43.581]
[1763514061527,3.28545011,141.15,141.12,37.2]
[1763514062736,3.28545011,141.15,141.12,6.3814]
[1763514063232,3.28545011,141.15,141.1,0.05346498]
[1763514063634,8.73538959,141.15,141.1,0.05346498]
[1763514063834,3.07,141.09,141.05,37.2]
[1763514064232,3.07,141.09,141.02,37.2]
[1763514064533,3.07,141.08,141.0,102.29649088]
[1763514064839,3.07,141.08,141.01,37.22]
[1763514065040,3.07,141.11,141.03,99.3299]
[1763514065240,0.05267271,141.08,141.06,0.05182019]
[1763514065541,0.05267271,141.08,141.06,6.43592019]
[1763514067030,3.12267271,141.08,141.06,6.43592019]
[1763514067235,3.12267271,141.08,141.06,0.05182019]
[1763514067438,3.12267271,141.08,141.01,37.22]
[1763514067635,3.07,141.07,141.01,37.22]
[1763514067837,3.07,141.07,141.02,6.3859]
[1763514068130,3.07,141.07,141.0,37.22]
[1763514068335,3.07,141.04,141.02,0.04569011]
[1763514069047,0.0478646,141.05,141.02,0.04569011]
[1763514069048,3.1178646,141.05,141.02,0.04569011]
[1763514071543,0.0478646,141.05,141.02,0.04569011]
[1763514072746,3.1178646,141.05,141.02,0.04569011]
[1763514075051,3.1178646,141.05,140.94,99.3917]
[1763514075240,3.07,141.01,140.95,43.6088]
[1763514075442,104.77664797,141.06,140.95,136.6052]
[1763514075443,3.07,141.06,140.95,136.6052]
[1763514075838,0.04920654,141.02,140.99,6.44115672]
[1763514076450,3.11920654,141.02,140.99,6.44115672]
[1763514076653,3.11920654,141.02,140.99,0.05385672]
[1763514077548,0.04920654,141.02,141.0,6.3868]
[1763514078154,0.04920654,141.02,141.0,43.6068]
[1763514080046,37.22,141.09,141.0,43.6068]
[1763514080047,3.07,141.09,141.03,99.3308]
[1763514080251,3.07,141.09,141.02,99.335]
[1763514080561,3.07,141.12,141.04,99.3232]
[1763514080852,3.07,141.12,141.07,6.3837]
[1763514081160,3.122416,141.11,141.08,0.04810731]
[1763514082451,0.052416,141.11,141.08,0.04810731]
[1763514082965,0.052416,141.11,141.09,6.3826]
[1763514084153,3.172416,141.11,141.08,37.28810731]
[1763514084559,3.172416,141.11,141.08,0.04810731]
[1763514084747,3.172416,141.11,141.08,6.43130731]
[1763514084950,3.172416,141.11,141.08,0.04810731]
[1763514087256,0.052416,141.11,141.08,0.04810731]
[1763514087963,3.172416,141.11,141.08,0.04810731]
[1763514091261,3.172416,141.11,141.08,6.43130731]
[1763514091461,0.052416,141.11,141.08,0.04810731]
[1763514091858,0.052416,141.11,141.09,6.3828]
[1763514092663,3.12,141.17,141.1,99.2817]
[1763514093062,3.12,141.17,141.11,99.2731]
[1763514093659,0.04989111,141.15,141.13,6.42777877]
[1763514094061,0.04989111,141.15,141.13,0.04717877]
[1763514094062,3.17989111,141.15,141.13,0.04717877]
[1763514094259,3.13,141.14,141.06,37.22]
[1763514094459,3.13,141.13,141.06,37.22]
[1763514094760,99.2445,141.16,141.06,37.22]
[1763514094761,3.13,141.11,141.07,6.3837]
[1763514095263,3.17516606,141.1,141.08,0.05295704]
[1763514100770,3.13,141.09,140.96,120.6307]
[1763514100968,3.13,141.07,140.96,136.6007]
[1763514101265,3.13,141.06,141.0,99.3522]
[1763514101455,3.13,141.08,141.01,99.3456]
[1763514101870,0.05367943,141.06,141.03,0.0502797]
[1763514102572,0.05367943,141.06,141.03,6.4354797]
[1763514102771,0.05367943,141.06,141.03,0.0502797]
[1763514103768,0.05367943,141.06,141.04,6.3849]
[1763514108070,0.05367943,141.06,141.04,43.6249]
[1763514108277,3.13,141.11,141.07,6.3834]
[1763514108465,3.13,141.11,141.05,99.3176]
[1763514108872,3.13,141.11,141.07,6.3836]
[1763514109380,0.04600225,141.1,141.08,0.04455375]
[1763514110278,3.17600225,141.1,141.08,0.04455375]
[1763514110579,3.17600225,141.1,141.08,6.42775375]
[1763514111679,0.04600225,141.1,141.08,6.42775375]
[1763514112964,0.04600225,141.1,141.08,43.66775375]
[1763514115572,3.17600225,141.1,141.08,6.42775375]
[1763514115878,3.17600225,141.1,141.08,0.04455375]
[1763514116886,3.17600225,141.1,141.08,6.42785375]
[1763514117382,3.17600225,141.1,141.08,6.42775375]
[1763514117775,0.04600225,141.1,141.08,6.42775375]
[1763514120383,3.17600225,141.1,141.08,0.04455375]
[1763514120888,3.13,141.08,140.98,99.3646]
[1763514121178,3.13,141.06,140.99,37.22]
[1763514121586,3.13,141.06,141.01,6.3864]
[1763514121774,3.18230833,141.04,141.01,6.44059103]
[1763514121975,3.18230833,141.04,141.01,6.43431099]
[1763514121976,3.18033333,141.04,141.01,6.43431099]
[1763514122384,3.18033333,141.04,141.02,6.386]
[1763514123087,3.18033333,141.04,141.01,0.04791099]
[1763514123689,3.18033333,141.04,141.01,6.43431099]
[1763514125492,3.18033333,141.04,141.01,0.04791099]
[1763514126081,3.12,141.02,141.01,0.04791099]
[1763514133500,3.17033333,141.04,141.01,0.04791099]
[1763514135802,9.55553333,141.04,141.01,0.04791099]
[1763514136103,3.12,141.02,140.94,136.6119]
[1763514136298,6.3867,141.01,140.97,6.3883]
[1763514136499,3.12,141.0,140.92,136.6286]
[1763514136992,0.04644289,140.97,140.95,6.4114946]
[1763514137194,3.16644289,140.97,140.95,0.0226946]
[1763514137395,3.12,140.94,140.9,1.23483074]
[1763514137590,3.12,140.94,140.85,99.4541]
[1763514137591,8.59940842,140.94,140.85,99.4541]
[1763514137808,3.12,140.93,140.81,37.24]
[1763514137993,99.4001,140.94,140.81,37.24]
[1763514137994,3.12,140.91,140.84,6.394]
[1763514138194,3.12,140.9,140.8,104.40709266]
[1763514138395,0.04730047,140.86,140.81,1.23557607]
[1763514138697,0.04730047,140.86,140.83,6.3945]
[1763514139000,0.04730047,140.86,140.82,99.4795]
[1763514139499,0.04730047,140.86,140.84,6.394]
[1763514140096,3.12,140.91,140.84,6.394]
[1763514140097,3.12,140.91,140.85,99.4564]
[1763514140296,3.12,140.94,140.85,99.4564]
[1763514140596,3.12,140.94,140.85,136.7364]
[1763514140793,3.12,140.94,140.88,6.3922]
[1763514141196,3.16728594,140.92,140.9,0.04847508]
[1763514143100,3.16728594,140.92,140.86,6.393]
[1763514143602,3.16728594,140.92,140.83,136.75]
[1763514143603,3.16728594,140.92,140.87,6.3926]
[1763514143804,3.12,140.92,140.87,6.3926]
[1763514144000,3.12,140.92,140.88,6.3922]
[1763514144204,0.05293388,140.91,140.88,6.3922]
[1763514144699,0.05293388,140.91,140.89,6.3917]
[1763514146100,0.05293388,140.91,140.87,6.3925]
[1763514148605,3.16293388,140.91,140.87,6.3925]
[1763514149309,0.05293388,140.91,140.86,99.45]
[1763514149509,0.05293388,140.91,140.87,99.4432]
[1763514149710,0.05293388,140.91,140.88,99.4372]
[1763514150008,3.16293388,140.91,140.89,6.3918]
[1763514150206,0.05293388,140.91,140.89,6.3918]
[1763514155911,0.05293388,140.91,140.88,37.28]
[1763514156119,3.05293388,140.91,140.83,99.47]
[1763514156320,3.05293388,140.91,140.84,37.28]
[1763514156708,3.0,140.9,140.86,6.3931]
[1763514158616,3.0,140.9,140.84,37.28]
[1763514159515,3.0,140.9,140.86,6.3932]
[1763514160121,3.0,140.9,140.84,37.28]
[1763514160322,3.0,140.9,140.81,1.23557607]
[1763514160510,0.04523002,140.87,140.81,1.23557607]
[1763514160708,3.04523002,140.87,140.84,6.3941]
[1763514162016,0.04523002,140.87,140.85,6.3937]
[1763514162324,0.04523002,140.87,140.81,137.99917607]
[1763514162618,3.04523002,140.87,140.83,6.3945]
[1763514163121,3.04523002,140.87,140.84,6.3941]
[1763514163720,3.04523002,140.87,140.82,6.3951]
[1763514163922,3.04523002,140.87,140.81,38.51557607]
[1763514165121,0.04523002,140.87,140.81,137.99867607]
[1763514165325,0.04523002,140.87,140.82,99.4785]
[1763514165718,0.04523002,140.87,140.85,6.3936]
[1763514166226,0.04523002,140.87,140.83,99.4718]
[1763514166227,0.04523002,140.87,140.81,38.51557607]
[1763514166426,3.04523002,140.87,140.84,6.3941]
[1763514166630,3.04523002,140.87,140.82,37.28]
[1763514167020,3.0,140.86,140.81,1.23557607]
[1763514167326,3.0,140.86,140.77,99.5144]
[1763514167327,3.0,140.86,140.8,99.4935]
[1763514167527,0.04642491,140.84,140.8,99.4935]
[1763514168023,0.04642491,140.84,140.83,6.3945]
[1763514168426,0.04642491,140.84,140.79,138.01380518]
[1763514169015,0.04642491,140.84,140.8,99.493]
[1763514169215,0.04642491,140.84,140.82,6.395]
[1763514169824,0.04642491,140.84,140.83,37.28]
[1763514171125,8.7216559,140.92,140.83,37.28]
[1763514171126,3.0,140.92,140.87,6.3926]
[1763514171326,5.46284555,140.91,140.87,6.3926]
[1763514171527,5.46284555,140.9,140.87,6.3926]
[1763514171722,3.0,140.92,140.87,6.3926]
[1763514171927,5.46489238,140.91,140.87,6.3926]